fUST/lending_fUST_20260526
["ID","MTS","AMOUNT","RATE_DAILY","PERIOD"]
[423026013,1779768643000,-151.0,0.0001,2]
[423026023,1779768643000,-763.11,0.00010014,2]
[423026025,1779768643000,-735.92,0.00010016,2]
[423026024,1779768643000,-537.7,0.00010016,2]
[423026022,1779768643000,-732.32,0.00010011,2]
[423026021,1779768643000,-559.32,0.0001001,2]
[423026014,1779768643000,-151.0,0.0001,2]
[423026015,1779768643000,-151.0,0.0001,2]
[423026019,1779768643000,-151.0,0.0001,2]
[423026020,1779768643000,-583.9,0.0001001,2]
[423026016,1779768643000,-151.0,0.0001,2]
[423026089,1779768643000,-898.210607,0.00010098,2]
[423026163,1779768643000,-500.0,0.00010136,2]
[423026081,1779768643000,-403.633487,0.00010098,2]
[423026158,1779768643000,-500.0,0.00010136,2]
[423026156,1779768643000,-641.85,0.00010136,2]
[423026160,1779768643000,-809.86,0.00010136,2]
[423026159,1779768643000,-624.03,0.00010136,2]
[423026162,1779768643000,-543.28,0.00010136,2]
[423026164,1779768643000,-2635.43,0.00010136,2]
[423026161,1779768643000,-870.31,0.00010136,2]
[423026181,1779768643000,-700.69346336,0.00010145,2]
[423026154,1779768643000,-1331.11,0.00010136,2]
[423026148,1779768643000,-837.05,0.00010136,2]
[423026150,1779768643000,-602.91,0.00010136,2]
[423026152,1779768643000,-500.0,0.00010136,2]
[423026169,1779768643000,-500.0,0.00010136,2]
[423026167,1779768643000,-531.75,0.00010136,2]
[423026165,1779768643000,-1451.35,0.00010136,2]
[423026170,1779768643000,-2425.5,0.00010136,2]
[423026168,1779768643000,-768.14,0.00010136,2]
[423026166,1779768643000,-1382.83,0.00010136,2]
[423026172,1779768643000,-500.0,0.00010136,2]
[423026173,1779768643000,-500.0,0.00010136,2]
[423026174,1779768643000,-901.99,0.00010136,2]
[423026171,1779768643000,-500.0,0.00010136,2]
[423026175,1779768643000,-500.0,0.00010136,2]
[423026177,1779768643000,-500.0,0.00010136,2]
[423026176,1779768643000,-500.0,0.00010136,2]
[423026178,1779768643000,-1145.4,0.00010136,2]
[423026179,1779768643000,-13266.02,0.00010136,2]
[423026180,1779768643000,-271.672,0.00010136,2]
[423026079,1779768643000,-160.0,0.00010098,2]
[423026146,1779768643000,-500.0,0.00010136,2]
[423026157,1779768643000,-667.53,0.00010136,2]
[423026182,1779768643000,-1036.3263381,0.00010173,2]
[423026143,1779768643000,-1184.32,0.00010136,2]
[423026074,1779768643000,-208.36176,0.00010098,2]
[423026076,1779768643000,-256.72352,0.00010098,2]
[423026095,1779768643000,-365.7619,0.00010098,2]
[423026093,1779768643000,-397.622533,0.00010098,2]
[423026077,1779768643000,-405.545616,0.00010098,2]
[423026108,1779768643000,-500.0,0.00010136,2]
[423026097,1779768643000,-10046.48675023,0.000101,2]
[423026099,1779768643000,-455.59276888,0.00010106,7]
[423026142,1779768643000,-2174.22,0.00010136,2]
[423026113,1779768643000,-500.0,0.00010136,2]
[423026101,1779768643000,-1907.9466,0.00010136,2]
[423026103,1779768643000,-500.0,0.00010136,2]
[423026110,1779768643000,-845.22,0.00010136,2]
[423026104,1779768643000,-500.0,0.00010136,2]
[423026115,1779768643000,-500.0,0.00010136,2]
[423026112,1779768643000,-500.0,0.00010136,2]
[423026117,1779768643000,-500.0,0.00010136,2]
[423026144,1779768643000,-631.88,0.00010136,2]
[423026106,1779768643000,-500.0,0.00010136,2]
[423026140,1779768643000,-794.94,0.00010136,2]
[423026138,1779768643000,-500.0,0.00010136,2]
[423026135,1779768643000,-500.0,0.00010136,2]
[423026136,1779768643000,-500.0,0.00010136,2]
[423026131,1779768643000,-500.0,0.00010136,2]
[423026133,1779768643000,-500.0,0.00010136,2]
[423026127,1779768643000,-500.0,0.00010136,2]
[423026125,1779768643000,-500.0,0.00010136,2]
[423026123,1779768643000,-500.0,0.00010136,2]
[423026121,1779768643000,-812.46,0.00010136,2]
[423026119,1779768643000,-732.69,0.00010136,2]
[423026129,1779768643000,-500.0,0.00010136,2]
[423026224,1779768644000,-762.1839075,0.00010377,7]
[423026226,1779768644000,-976.02681464,0.00010377,2]
[423026228,1779768644000,-7958.80199,0.00010406,2]
[423026225,1779768644000,-885.91560388,0.00010377,7]
[423026227,1779768644000,-10046.48675023,0.000104,2]
[423026217,1779768644000,-396.41717403,0.00010332,7]
[423026223,1779768644000,-289.66625923,0.00010363,7]
[423026222,1779768644000,-382.90377083,0.00010332,7]
[423026219,1779768644000,-651.51653182,0.00010332,7]
[423026218,1779768644000,-608.15274202,0.00010332,7]
[423026220,1779768644000,-594.05324036,0.00010332,7]
[423026221,1779768644000,-304.64214869,0.00010332,2]
[423026229,1779768644000,-537.523442,0.00010406,2]
[423026246,1779768644000,-500.0,0.0001041,2]
[423026231,1779768644000,-14223.560097,0.00010406,2]
[423026232,1779768644000,-1174.143368,0.00010406,2]
[423026233,1779768644000,-3428.389908,0.00010406,2]
[423026236,1779768644000,-2715.126782,0.00010406,2]
[423026239,1779768644000,-8653.031203,0.00010406,2]
[423026238,1779768644000,-1608.37892,0.00010406,2]
[423026237,1779768644000,-2134.655118,0.00010406,2]
[423026240,1779768644000,-6337.136169,0.00010406,2]
[423026235,1779768644000,-3891.165456,0.00010406,2]
[423026241,1779768644000,-5260.214992,0.00010406,2]
[423026244,1779768644000,-500.0,0.0001041,2]
[423026245,1779768644000,-500.0,0.0001041,2]
[423026211,1779768644000,-168.10934362,0.00010304,7]
[423026230,1779768644000,-1546.429122,0.00010406,2]
[423026210,1779768644000,-160.10976681,0.00010304,7]
[423026196,1779768644000,-158.3108671,0.00010304,7]
[423026214,1779768644000,-365.97662996,0.00010311,7]
[423026243,1779768644000,-1907.9466,0.0001041,2]
[423026188,1779768644000,-214.104441,0.00010202,2]
[423026189,1779768644000,-1000.0,0.00010249,2]
[423026190,1779768644000,-492.0,0.00010249,2]
[423026184,1779768644000,-218.370716,0.00010202,2]
[423026185,1779768644000,-186.292379,0.00010202,2]
[423026187,1779768644000,-192.534935,0.00010202,2]
[423026183,1779768644000,-10046.48675023,0.000102,2]
[423026186,1779768644000,-162.801634,0.00010202,2]
[423026191,1779768644000,-152.0,0.00010267,2]
[423026195,1779768644000,-157.96823686,0.00010304,7]
[423026201,1779768644000,-325.20272257,0.00010304,7]
[423026198,1779768644000,-314.65930528,0.00010304,7]
[423026192,1779768644000,-987.48780166,0.00010279,5]
[423026193,1779768644000,-10046.48675023,0.000103,2]
[423026197,1779768644000,-347.55399269,0.00010304,7]
[423026200,1779768644000,-382.18388229,0.00010304,7]
[423026202,1779768644000,-158.10917363,0.00010304,7]
[423026204,1779768644000,-422.94425257,0.00010304,7]
[423026199,1779768644000,-402.27188207,0.00010304,7]
[423026203,1779768644000,-367.87480694,0.00010304,7]
[423026206,1779768644000,-372.82166573,0.00010304,7]
[423026215,1779768644000,-410.0188994,0.00010331,7]
[423026205,1779768644000,-334.75246489,0.00010304,7]
[423026216,1779768644000,-3270.59822407,0.00010332,6]
[423026207,1779768644000,-347.85915544,0.00010304,7]
[423026208,1779768644000,-188.27152458,0.00010304,7]
[423026213,1779768644000,-325.17521615,0.00010311,7]
[423026212,1779768644000,-160.10321615,0.00010304,7]
[423026209,1779768644000,-433.6896094,0.00010304,7]
[423026251,1779768644000,-500.0,0.0001041,2]
[423026234,1779768644000,-482.067997,0.00010406,2]
[423026248,1779768644000,-845.22,0.0001041,2]
[423026282,1779768644000,-1451.35,0.0001041,2]
[423026289,1779768644000,-500.0,0.0001041,2]
[423026280,1779768644000,-500.0,0.0001041,2]
[423026287,1779768644000,-2425.5,0.0001041,2]
[423026288,1779768644000,-500.0,0.0001041,2]
[423026283,1779768644000,-1382.83,0.0001041,2]
[423026292,1779768644000,-500.0,0.0001041,2]
[423026284,1779768644000,-531.75,0.0001041,2]
[423026293,1779768644000,-500.0,0.0001041,2]
[423026285,1779768644000,-768.14,0.0001041,2]
[423026291,1779768644000,-901.99,0.0001041,2]
[423026286,1779768644000,-500.0,0.0001041,2]
[423026295,1779768644000,-1145.4,0.0001041,2]
[423026294,1779768644000,-500.0,0.0001041,2]
[423026297,1779768644000,-208.25816139,0.00010411,7]
[423026296,1779768644000,-13266.02,0.0001041,2]
[423026306,1779768644000,-216.42716,0.0001051,2]
[423026305,1779768644000,-163.844845,0.0001051,2]
[423026299,1779768644000,-258.87903674,0.00010456,7]
[423026307,1779768644000,-240.417415,0.0001051,2]
[423026301,1779768644000,-10046.48675023,0.000105,2]
[423026303,1779768644000,-165.701751,0.0001051,2]
[423026304,1779768644000,-378.007199,0.0001051,2]
[423026298,1779768644000,-250.0,0.00010411,2]
[423026302,1779768644000,-564.083189,0.0001051,2]
[423026309,1779768644000,-407.004079,0.0001051,2]
[423026308,1779768644000,-465.730947,0.0001051,2]
[423026310,1779768644000,-10046.48675023,0.000106,2]
[423026252,1779768644000,-500.0,0.0001041,2]
[423026290,1779768644000,-500.0,0.0001041,2]
[423026281,1779768644000,-2635.43,0.0001041,2]
[423026300,1779768644000,-204.87499604,0.00010486,2]
[423026276,1779768644000,-624.03,0.0001041,2]
[423026249,1779768644000,-385.93103718,0.0001041,2]
[423026274,1779768644000,-667.53,0.0001041,2]
[423026242,1779768644000,-5522.387213,0.00010406,2]
[423026247,1779768644000,-500.0,0.0001041,2]
[423026250,1779768644000,-500.0,0.0001041,2]
[423026254,1779768644000,-812.46,0.0001041,2]
[423026265,1779768644000,-2174.22,0.0001041,2]
[423026255,1779768644000,-500.0,0.0001041,2]
[423026253,1779768644000,-732.69,0.0001041,2]
[423026262,1779768644000,-500.0,0.0001041,2]
[423026259,1779768644000,-500.0,0.0001041,2]
[423026266,1779768644000,-1184.32,0.0001041,2]
[423026256,1779768644000,-500.0,0.0001041,2]
[423026257,1779768644000,-500.0,0.0001041,2]
[423026264,1779768644000,-794.94,0.0001041,2]
[423026278,1779768644000,-870.31,0.0001041,2]
[423026270,1779768644000,-602.91,0.0001041,2]
[423026273,1779768644000,-641.85,0.0001041,2]
[423026272,1779768644000,-1331.11,0.0001041,2]
[423026271,1779768644000,-500.0,0.0001041,2]
[423026275,1779768644000,-500.0,0.0001041,2]
[423026263,1779768644000,-500.0,0.0001041,2]
[423026268,1779768644000,-500.0,0.0001041,2]
[423026279,1779768644000,-543.28,0.0001041,2]
[423026267,1779768644000,-631.88,0.0001041,2]
[423026269,1779768644000,-837.05,0.0001041,2]
[423026260,1779768644000,-500.0,0.0001041,2]
[423026258,1779768644000,-500.0,0.0001041,2]
[423026261,1779768644000,-500.0,0.0001041,2]
[423026277,1779768644000,-809.86,0.0001041,2]
[423026326,1779768645000,-500.0,0.00010684,2]
[423026333,1779768645000,-500.0,0.00010684,2]
[423026341,1779768645000,-500.0,0.00010684,2]
[423026334,1779768645000,-794.94,0.00010684,2]
[423026328,1779768645000,-500.0,0.00010684,2]
[423026332,1779768645000,-500.0,0.00010684,2]
[423026346,1779768645000,-624.03,0.00010684,2]
[423026338,1779768645000,-500.0,0.00010684,2]
[423026344,1779768645000,-667.53,0.00010684,2]
[423026336,1779768645000,-1184.32,0.00010684,2]
[423026345,1779768645000,-500.0,0.00010684,2]
[423026339,1779768645000,-837.05,0.00010684,2]
[423026347,1779768645000,-809.86,0.00010684,2]
[423026337,1779768645000,-631.88,0.00010684,2]
[423026330,1779768645000,-500.0,0.00010684,2]
[423026335,1779768645000,-2174.22,0.00010684,2]
[423026329,1779768645000,-500.0,0.00010684,2]
[423026312,1779768645000,-203.97493079,0.00010654,7]
[423026325,1779768645000,-500.0,0.00010684,2]
[423026342,1779768645000,-1331.11,0.00010684,2]
[423026319,1779768645000,-845.22,0.00010684,2]
[423026320,1779768645000,-500.0,0.00010684,2]
[423026315,1779768645000,-500.0,0.00010684,2]
[423026313,1779768645000,-579.33251846,0.00010679,7]
[423026314,1779768645000,-1907.9466,0.00010684,2]
[423026311,1779768645000,-429.70659578,0.00010618,2]
[423026317,1779768645000,-500.0,0.00010684,2]
[423026316,1779768645000,-500.0,0.00010684,2]
[423026318,1779768645000,-574.00595769,0.00010684,2]
[423026321,1779768645000,-500.0,0.00010684,2]
[423026331,1779768645000,-500.0,0.00010684,2]
[423026324,1779768645000,-812.46,0.00010684,2]
[423026322,1779768645000,-500.0,0.00010684,2]
[423026323,1779768645000,-732.69,0.00010684,2]
[423026327,1779768645000,-500.0,0.00010684,2]
[423026343,1779768645000,-641.85,0.00010684,2]
[423026371,1779768645000,-2000.0,0.00010719,2]
[423026349,1779768645000,-543.28,0.00010684,2]
[423026372,1779768645000,-2000.0,0.00010719,2]
[423026368,1779768645000,-2000.0,0.00010719,2]
[423026369,1779768645000,-2000.0,0.00010719,2]
[423026370,1779768645000,-2000.0,0.00010719,2]
[423026375,1779768645000,-2000.0,0.00010719,2]
[423026340,1779768645000,-602.91,0.00010684,2]
[423026374,1779768645000,-451.60990276,0.00010719,2]
[423026377,1779768645000,-1764.53693344,0.00010719,2]
[423026379,1779768645000,-500.0,9.863e-05,2]
[423026378,1779768645000,-152.0,9.301e-05,7]
[423026381,1779768645000,-500.0,0.0001041,2]
[423026380,1779768645000,-500.0,0.00010136,2]
[423026382,1779768645000,-500.0,0.00010684,2]
[423026383,1779768645000,-235.46306656,0.00010719,2]
[423026384,1779768645000,-543.29394462,0.00010719,2]
[423026366,1779768645000,-13266.02,0.00010684,2]
[423026365,1779768645000,-1145.4,0.00010684,2]
[423026376,1779768645000,-2000.0,0.00010719,2]
[423026367,1779768645000,-10046.48675023,0.000107,2]
[423026363,1779768645000,-500.0,0.00010684,2]
[423026359,1779768645000,-500.0,0.00010684,2]
[423026361,1779768645000,-901.99,0.00010684,2]
[423026348,1779768645000,-870.31,0.00010684,2]
[423026360,1779768645000,-500.0,0.00010684,2]
[423026350,1779768645000,-481.14878997,0.00010684,2]
[423026354,1779768645000,-531.75,0.00010684,2]
[423026358,1779768645000,-500.0,0.00010684,2]
[423026352,1779768645000,-1451.35,0.00010684,2]
[423026355,1779768645000,-768.14,0.00010684,2]
[423026351,1779768645000,-2635.43,0.00010684,2]
[423026353,1779768645000,-1382.83,0.00010684,2]
[423026357,1779768645000,-2425.5,0.00010684,2]
[423026362,1779768645000,-500.0,0.00010684,2]
[423026373,1779768645000,-1548.39009724,0.00010719,2]
[423026364,1779768645000,-500.0,0.00010684,2]
[423026356,1779768645000,-500.0,0.00010684,2]
[423026389,1779768646000,-2000.0,0.00010719,2]
[423026385,1779768646000,-1456.70605538,0.00010719,2]
[423026386,1779768646000,-1308.53693344,0.00010719,2]
[423026388,1779768646000,-691.46306656,0.00010719,2]
[423026390,1779768646000,-2000.0,0.00010719,2]
[423026392,1779768646000,-2000.0,0.00010722,2]
[423026397,1779768646000,-2000.0,0.00010722,2]
[423026394,1779768646000,-2000.0,0.00010722,2]
[423026395,1779768646000,-2000.0,0.00010722,2]
[423026393,1779768646000,-2000.0,0.00010722,2]
[423026396,1779768646000,-2000.0,0.00010722,2]
[423026399,1779768646000,-368.1946,0.00010722,2]
[423026398,1779768646000,-500.96570166,0.00010722,2]
[423026391,1779768646000,-2000.0,0.00010719,2]
[423026408,1779768962000,-500.0,5.989e-05,2]
[423026407,1779768962000,-484.21524724,5.989e-05,2]
[423026410,1779768962000,-500.0,5.989e-05,2]
[423026409,1779768962000,-500.0,5.989e-05,2]
[423026413,1779768962000,-500.74587436,5.989e-05,2]
[423026414,1779768962000,-392.47720316,5.989e-05,2]
[423026412,1779768962000,-500.0,5.989e-05,2]
[423026415,1779768962000,-972.56167524,5.99e-05,2]
[423026411,1779768962000,-650.0,5.989e-05,2]
[423026418,1779768965000,-618.35633066,6.361e-05,2]
[423026416,1779768965000,-300.0,5.988e-05,2]
[423026419,1779768965000,-54.20534458,6.361e-05,2]
[423026417,1779768965000,-4027.43832476,5.99e-05,2]
[423026427,1779768966000,-618.35633066,6.361e-05,2]
[423026428,1779768966000,-107.3546993,6.361e-05,2]
[423026426,1779768966000,-618.35633066,6.361e-05,2]
[423026425,1779768966000,-618.35633066,6.361e-05,2]
[423026424,1779768966000,-618.35633066,6.361e-05,2]
[423026422,1779768966000,-618.35633066,6.361e-05,2]
[423026421,1779768966000,-618.35633066,6.361e-05,2]
[423026420,1779768966000,-564.15098608,6.361e-05,2]
[423026423,1779768966000,-618.35633066,6.361e-05,2]
[423026432,1779768967000,-618.35633066,6.361e-05,2]
[423026429,1779768967000,-511.00163136,6.361e-05,2]
[423026430,1779768967000,-618.35633066,6.361e-05,2]
[423026433,1779768967000,-618.35633066,6.361e-05,2]
[423026431,1779768967000,-618.35633066,6.361e-05,2]
[423026437,1779768967000,-160.50405402,6.361e-05,2]
[423026435,1779768967000,-618.35633066,6.361e-05,2]
[423026436,1779768967000,-618.35633066,6.361e-05,2]
[423026434,1779768967000,-618.35633066,6.361e-05,2]
[423026446,1779768969000,-174.30346048,6.361e-05,2]
[423026445,1779768969000,-623.97775184,6.361e-05,2]
[423026444,1779768969000,-623.97775184,6.361e-05,2]
[423026443,1779768969000,-623.97775184,6.361e-05,2]
[423026442,1779768969000,-623.97775184,6.361e-05,2]
[423026441,1779768969000,-623.97775184,6.361e-05,2]
[423026439,1779768969000,-623.97775184,6.361e-05,2]
[423026440,1779768969000,-623.97775184,6.361e-05,2]
[423026438,1779768969000,-457.85227664,6.361e-05,2]
[423026448,1779768975000,-623.97775184,6.361e-05,2]
[423026447,1779768975000,-449.67429136,6.361e-05,2]
[423026449,1779768977000,3926.3479568,6.297e-05,2]
[423026450,1779768995000,-1073.6520432,6.297e-05,2]
[423026495,1779769832000,-1309.63662955,7.243e-05,2]
[423026502,1779769832000,-1980.1863641,7.243e-05,2]
[423026500,1779769832000,-304.45979512,7.243e-05,2]
[423026496,1779769832000,-377.79288211,7.243e-05,2]
[423026695,1779769841000,-282.56740648,7.316e-05,2]
[423026698,1779769841000,-235.86144448,7.385e-05,2]
[423026697,1779769841000,-300.0,7.385e-05,2]
[423026696,1779769841000,-191.96353582,7.316e-05,2]
[423026694,1779769841000,-1027.92432912,7.243e-05,2]
[423026702,1779769842000,-158.77773176,7.385e-05,2]
[423026700,1779769842000,-500.0,7.385e-05,2]
[423026703,1779769842000,-500.0,7.385e-05,2]
[423026704,1779769842000,-348.50669473,7.385e-05,2]
[423026701,1779769842000,-341.22226824,7.385e-05,2]
[423026699,1779769842000,-67.13855552,7.385e-05,2]
[423026712,1779769843000,-151.49330527,7.385e-05,2]
[423026714,1779769843000,-49.53154491,7.385e-05,2]
[423026715,1779769843000,-464.72225504,7.385e-05,2]
[423026713,1779769843000,-477.29425931,7.385e-05,2]
[423026716,1779769843000,-35.27774496,7.385e-05,2]
[423026717,1779769844000,-500.0,7.385e-05,2]
[423026718,1779769844000,-500.0,7.385e-05,2]
[423026721,1779769844000,-500.0,7.385e-05,2]
[423026722,1779769844000,-500.0,7.385e-05,2]
[423026719,1779769844000,-500.0,7.385e-05,2]
[423026723,1779769844000,-500.0,7.385e-05,2]
[423026724,1779769844000,-99.14435004,7.389e-05,2]
[423026725,1779769844000,-85.71364996,7.389e-05,2]
[423026726,1779769844000,-1198.78402436,7.463e-05,2]
[423026720,1779769844000,-500.0,7.385e-05,2]
[423026753,1779769846000,-958.5,7.463e-05,2]
[423026774,1779769847000,-5753.5512054,7.463e-05,2]
[423026773,1779769847000,-27668.21679297,7.463e-05,2]
[423026775,1779769891000,-500.0,7.385e-05,2]
[423026794,1779770849000,-5000.0,6.879e-05,2]
[423026795,1779770859000,1200.0,6.879e-05,2]
[423026853,1779771032000,-669.85014291,6.879e-05,2]
[423026913,1779771038000,-500.0,6.946e-05,2]
[423026914,1779771038000,-500.0,6.946e-05,2]
[423026897,1779771038000,-3130.14985709,6.879e-05,2]
[423026898,1779771038000,-486.93853154,6.914e-05,2]
[423026901,1779771038000,-507.54977459,6.946e-05,2]
[423026906,1779771038000,-500.0,6.946e-05,2]
[423026905,1779771038000,-500.0,6.946e-05,2]
[423026903,1779771038000,-500.0,6.946e-05,2]
[423026911,1779771038000,-500.0,6.946e-05,2]
[423026899,1779771038000,-300.0,6.946e-05,2]
[423026900,1779771038000,-500.0,6.946e-05,2]
[423026904,1779771038000,-500.0,6.946e-05,2]
[423026902,1779771038000,-579.69489333,6.946e-05,2]
[423026909,1779771038000,-500.0,6.946e-05,2]
[423026908,1779771038000,-500.0,6.946e-05,2]
[423026907,1779771038000,-508.15696696,6.946e-05,2]
[423026912,1779771038000,-500.0,6.946e-05,2]
[423026910,1779771038000,-389.17120891,6.946e-05,2]
[423026952,1779771039000,-887.34845267,8.2e-05,2]
[423026955,1779771039000,-500.0,8.219e-05,2]
[423026951,1779771039000,-803.96066399,8.2e-05,2]
[423026954,1779771039000,-1665.8315,8.219e-05,2]
[423026949,1779771039000,-170.7291634,8e-05,2]
[423026948,1779771039000,-281.02448664,8e-05,2]
[423026946,1779771039000,-254.60234973,8e-05,2]
[423026947,1779771039000,-268.72369077,8e-05,2]
[423026945,1779771039000,-190.97185092,8e-05,2]
[423026953,1779771039000,-945.7132666,8.2e-05,2]
[423026950,1779771039000,-414.76214318,8.2e-05,2]
[423026956,1779771039000,-500.0,8.219e-05,2]
[423026962,1779771039000,-500.0,8.219e-05,2]
[423026965,1779771039000,-500.0,8.219e-05,2]
[423026964,1779771039000,-500.0,8.219e-05,2]
[423026968,1779771039000,-500.0,8.219e-05,2]
[423026969,1779771039000,-500.0,8.219e-05,2]
[423026967,1779771039000,-500.0,8.219e-05,2]
[423026957,1779771039000,-500.0,8.219e-05,2]
[423026944,1779771039000,-160.0,7.948e-05,2]
[423026959,1779771039000,-500.0,8.219e-05,2]
[423026961,1779771039000,-500.0,8.219e-05,2]
[423026958,1779771039000,-500.0,8.219e-05,2]
[423026960,1779771039000,-500.0,8.219e-05,2]
[423026963,1779771039000,-500.0,8.219e-05,2]
[423026966,1779771039000,-500.0,8.219e-05,2]
[423026939,1779771039000,-858.4231918,7.252e-05,2]
[423026931,1779771039000,-549.49146774,7.162e-05,2]
[423026937,1779771039000,-1874.0043923,7.252e-05,2]
[423026971,1779771039000,-500.0,8.219e-05,2]
[423026918,1779771039000,-549.49146774,7.162e-05,2]
[423026915,1779771039000,-500.0,6.946e-05,2]
[423026916,1779771039000,-500.0,6.946e-05,2]
[423026919,1779771039000,-549.49146774,7.162e-05,2]
[423026917,1779771039000,-549.49146774,7.162e-05,2]
[423026920,1779771039000,-549.49146774,7.162e-05,2]
[423026928,1779771039000,-549.49146774,7.162e-05,2]
[423026927,1779771039000,-549.49146774,7.162e-05,2]
[423026929,1779771039000,-549.49146774,7.162e-05,2]
[423026921,1779771039000,-549.49146774,7.162e-05,2]
[423026923,1779771039000,-549.49146774,7.162e-05,2]
[423026935,1779771039000,-18954.3303926,7.231e-05,2]
[423026922,1779771039000,-549.49146774,7.162e-05,2]
[423026924,1779771039000,-549.49146774,7.162e-05,2]
[423026926,1779771039000,-549.49146774,7.162e-05,2]
[423026925,1779771039000,-549.49146774,7.162e-05,2]
[423026932,1779771039000,-549.49146774,7.162e-05,2]
[423026942,1779771039000,-600.0,7.611e-05,2]
[423026943,1779771039000,-160.0,7.948e-05,2]
[423026936,1779771039000,-588.4991477,7.241e-05,2]
[423026940,1779771039000,-104692.13564055,7.263e-05,2]
[423026938,1779771039000,-18954.3303926,7.252e-05,2]
[423026933,1779771039000,-549.49146774,7.162e-05,2]
[423026934,1779771039000,-612587.33037429,7.163e-05,2]
[423026941,1779771039000,-207.26526762,7.563e-05,2]
[423026930,1779771039000,-549.49146774,7.162e-05,2]
[423026972,1779771039000,-1268.3,8.219e-05,2]
[423026989,1779771039000,-207.75898616,8.219e-05,2]
[423026973,1779771039000,-500.0,8.219e-05,2]
[423027004,1779771039000,-240.376475,8.219e-05,2]
[423027006,1779771039000,-7780.18,8.219e-05,2]
[423027008,1779771039000,-500.0,8.219e-05,2]
[423027007,1779771039000,-500.0,8.219e-05,2]
[423027018,1779771039000,-500.0,8.493e-05,2]
[423027009,1779771039000,-283.3669933,8.219e-05,2]
[423027015,1779771039000,-500.0,8.493e-05,2]
[423027016,1779771039000,-595.31279352,8.493e-05,2]
[423027013,1779771039000,-500.0,8.493e-05,2]
[423027010,1779771039000,-500.0,8.219e-05,2]
[423027011,1779771039000,-720.0,8.372e-05,2]
[423027014,1779771039000,-373.5677179,8.493e-05,2]
[423027005,1779771039000,-500.0,8.219e-05,2]
[423027012,1779771039000,-1665.8315,8.493e-05,2]
[423027028,1779771039000,-500.0,8.493e-05,2]
[423027023,1779771039000,-500.0,8.493e-05,2]
[423027021,1779771039000,-500.0,8.493e-05,2]
[423027020,1779771039000,-500.0,8.493e-05,2]
[423027030,1779771039000,-1268.3,8.493e-05,2]
[423027024,1779771039000,-485.07762559,8.493e-05,2]
[423027025,1779771039000,-500.0,8.493e-05,2]
[423027019,1779771039000,-500.0,8.493e-05,2]
[423027022,1779771039000,-500.0,8.493e-05,2]
[423027027,1779771039000,-500.0,8.493e-05,2]
[423026974,1779771039000,-690.86,8.219e-05,2]
[423027029,1779771039000,-500.0,8.493e-05,2]
[423027026,1779771039000,-500.0,8.493e-05,2]
[423027002,1779771039000,-500.0,8.219e-05,2]
[423027017,1779771039000,-500.0,8.493e-05,2]
[423026999,1779771039000,-500.0,8.219e-05,2]
[423026975,1779771039000,-500.0,8.219e-05,2]
[423026976,1779771039000,-776.48,8.219e-05,2]
[423027003,1779771039000,-500.0,8.219e-05,2]
[423026970,1779771039000,-500.0,8.219e-05,2]
[423026978,1779771039000,-500.0,8.219e-05,2]
[423026980,1779771039000,-500.0,8.219e-05,2]
[423026977,1779771039000,-500.0,8.219e-05,2]
[423026982,1779771039000,-507.68,8.219e-05,2]
[423026981,1779771039000,-500.0,8.219e-05,2]
[423026983,1779771039000,-500.0,8.219e-05,2]
[423026984,1779771039000,-1537.33,8.219e-05,2]
[423026985,1779771039000,-500.0,8.219e-05,2]
[423026994,1779771039000,-500.0,8.219e-05,2]
[423026987,1779771039000,-500.0,8.219e-05,2]
[423026979,1779771039000,-500.0,8.219e-05,2]
[423027000,1779771039000,-500.0,8.219e-05,2]
[423026998,1779771039000,-500.0,8.219e-05,2]
[423027001,1779771039000,-500.0,8.219e-05,2]
[423026997,1779771039000,-668.15,8.219e-05,2]